fUSD/lending_fUSD_20250124
["ID","MTS","AMOUNT","RATE_DAILY","PERIOD"]
[350250864,1737735111377,-50000.0,0.000218,10]
[350250865,1737735111394,-221.865093,0.000218,2]
[350250866,1737735111411,-226.285409,0.000218,2]
[350250867,1737735111428,-39999.999999,0.000218,2]
[350250868,1737735111444,-415.5607429,0.000218,30]
[350250869,1737735111460,-24235.830628,0.000218,2]
[350250870,1737735111478,-24235.830628,0.000218,2]
[350250871,1737735111495,-24235.830628,0.000218,2]
[350250872,1737735111510,-24235.830628,0.000218,2]
[350250873,1737735111527,-24235.830628,0.000218,2]
[350250874,1737735111544,-24235.830628,0.000218,2]
[350250875,1737735111560,-24235.830628,0.000218,2]
[350250876,1737735111576,-24235.830628,0.000218,2]
[350250877,1737735111592,-24235.830628,0.000218,2]
[350250878,1737735111608,-24235.830628,0.000218,2]
[350250879,1737735111624,-24235.830628,0.000218,2]
[350250880,1737735111640,-24235.830628,0.000218,2]
[350250881,1737735111656,-24235.830628,0.000218,2]
[350250882,1737735111673,-24235.830628,0.000218,2]
[350250883,1737735111908,-24235.830628,0.000218,2]
[350250884,1737735111933,-21763.091013,0.000218,2]
[350250885,1737735111944,-21763.091013,0.000218,2]
[350250886,1737735111954,-21763.091013,0.000218,2]
[350250887,1737735111964,-21763.091013,0.000218,2]
[350250888,1737735111975,-21763.091013,0.000218,2]
[350250889,1737735111984,-150.0,0.00021832,4]
[350250890,1737735111994,-509.72224896,0.00021843,2]
[350250891,1737735112003,-580.7904326,0.00021843,2]
[350250892,1737735112013,-577.89819082,0.00021843,2]
[350250893,1737735112024,-679.78,0.00021843,2]
[350250894,1737735112033,-1705.73019706,0.00021843,2]
[350250895,1737735112044,-2554.67579196,0.00021843,2]
[350250896,1737735112055,-676.513947,0.00021843,2]
[350250897,1737735112064,-956.90622461,0.00021843,2]
[350250898,1737735112073,-1945.88,0.00021843,2]
[350250899,1737735112084,-2012.19977275,0.00021843,2]
[350250900,1737735112093,-622.31417489,0.00021843,2]
[350250901,1737735112103,-846.729176,0.00021843,2]
[350250902,1737735112112,-1583.64,0.00021843,2]
[350250903,1737735112122,-564.32,0.00021843,2]
[350250904,1737735112132,-1121.36925644,0.00021843,2]
[350250905,1737735112142,-871.70177636,0.00021843,2]
[350250906,1737735112151,-1370.66772176,0.00021843,2]
[350250907,1737735112162,-705.35124669,0.00021843,2]
[350250908,1737735112172,-1962.44670032,0.00021843,2]
[350250909,1737735112182,-718.28,0.00021843,2]
[350250910,1737735112192,-619.23009445,0.00021843,2]
[350250911,1737735112202,-865.11695489,0.00021843,2]
[350250912,1737735112211,-2217.84533946,0.00021843,2]
[350250913,1737735112221,-722.27594777,0.00021843,2]
[350250914,1737735112231,-2901.62011362,0.00021843,2]
[350250915,1737735112241,-562.13484004,0.00021843,2]
[350250916,1737735112251,-503.38281424,0.00021843,2]
[350250917,1737735112261,-1511.51258232,0.00021843,2]
[350250918,1737735112272,-1656.27720598,0.00021843,2]
[350250919,1737735112282,-831.53560081,0.00021843,2]
[350250920,1737735112291,-1027.41698137,0.00021843,2]
[350250921,1737735112302,-1186.16714916,0.00021843,2]
[350250922,1737735112312,-985.91550245,0.00021843,2]
[350250923,1737735112322,-2108.51968035,0.00021843,2]
[350250924,1737735112331,-1080.49953846,0.00021843,2]
[350250925,1737735112341,-838.78,0.00021843,2]
[350250926,1737735112351,-539.1566965,0.00021843,2]
[350250927,1737735112360,-578.67,0.00021843,2]
[350250928,1737735112370,-2039.38893655,0.00021843,2]
[350250929,1737735112380,-1068.34,0.00021843,2]
[350250930,1737735112390,-1155.96017195,0.00021843,2]
[350250931,1737735112400,-2273.1663065,0.00021843,2]
[350250932,1737735112410,-1338.57309504,0.00021843,2]
[350250933,1737735112420,-3483.3560869,0.00021843,2]
[350250934,1737735112430,-873.12138903,0.00021843,2]
[350250935,1737735112439,-1147.23165703,0.00021843,2]
[350250936,1737735112449,-1277.25694397,0.00021843,2]
[350250937,1737735112459,-2989.58942137,0.00021843,2]
[350250938,1737735112469,-644.31742289,0.00021843,2]
[350250939,1737735112478,-678.14236929,0.00021844,2]
[350250940,1737735112488,-660.16025725,0.00021844,2]
[350250941,1737735112498,-589.44,0.00021844,2]
[350250942,1737735112509,-770.50495913,0.00021844,2]
[350250943,1737735112519,-513.87135258,0.00021844,2]
[350250944,1737735112529,-581.01,0.00021844,2]
[350250945,1737735112539,-614.42024552,0.00021844,2]
[350250946,1737735112549,-566.87970861,0.00021844,2]
[350250947,1737735112559,-767.98281231,0.00021844,2]
[350250948,1737735112568,-654.23222421,0.00021844,2]
[350250949,1737735112578,-485.0120568,0.00021844,2]
[350250950,1737735112589,-438.33306422,0.00021844,2]
[350250951,1737735112598,-510.1,0.00021844,2]
[350250952,1737735112608,-798.91456557,0.00021844,2]
[350250953,1737735112618,-652.19,0.00021844,2]
[350250954,1737735112629,-846.54,0.00021844,2]
[350250955,1737735112639,-770.20769272,0.00021844,2]
[350250956,1737735112648,-937.69853203,0.00021844,2]
[350250957,1737735112658,-672.09,0.00021844,2]
[350250958,1737735112668,-693.09878032,0.00021844,2]
[350250959,1737735112678,-1011.78252417,0.00021844,2]
[350250960,1737735112688,-955.01164074,0.00021844,2]
[350250961,1737735112698,-594.20952073,0.00021844,2]
[350250962,1737735112708,-614.2,0.00021844,2]
[350250963,1737735112718,-652.64558978,0.00021844,2]
[350250964,1737735112728,-849.34541283,0.00021844,2]
[350250965,1737735112738,-708.21041813,0.00021844,2]
[350250966,1737735112748,-511.56581596,0.00021844,2]
[350250967,1737735112758,-833.18992162,0.00021844,2]
[350250968,1737735112768,-681.8782791,0.00021844,2]
[350250969,1737735112779,-560.48885151,0.00021844,2]
[350250970,1737735112789,-805.431333,0.00021844,2]
[350250971,1737735112799,-698.08002147,0.00021844,2]
[350250972,1737735112810,-580.2,0.00021844,2]
[350250973,1737735112819,-670.02,0.00021844,2]
[350250974,1737735112830,-556.47904128,0.00021844,2]
[350250975,1737735112839,-1151.31168783,0.00021844,2]
[350250976,1737735112849,-582.59,0.00021844,2]
[350250977,1737735112859,-656.54018924,0.00021844,2]
[350250978,1737735112869,-1418.068732,0.00021844,2]
[350250979,1737735112880,-583.17830291,0.00021844,2]
[350250980,1737735112891,-544.39787769,0.00021844,2]
[350250981,1737735112903,-1083.34377341,0.00021844,2]
[350250982,1737735112914,-634.76223618,0.00021844,2]
[350250983,1737735112923,-1858.26663164,0.00021844,2]
[350250984,1737735112935,-517.03,0.00021844,2]
[350250985,1737735112945,-1003.97408576,0.00021844,2]
[350250986,1737735112955,-695.26,0.00021844,2]
[350250987,1737735112965,-531.07145485,0.00021844,2]
[350250988,1737735112977,-4029.25347862,0.00021844,2]
[350250989,1737735112987,-486.49,0.00021844,2]
[350250990,1737735112998,-1624.93,0.00021844,2]
[350250991,1737735113007,-672.9,0.00021844,2]
[350250992,1737735113017,-2230.39297573,0.00021844,2]
[350250993,1737735113028,-559.073317,0.00021844,2]
[350250994,1737735113038,-1209.71893809,0.00021844,2]
[350250995,1737735113048,-1414.62286153,0.00021844,2]
[350250996,1737735113057,-3342.26,0.00021844,2]
[350250997,1737735113067,-2093.0,0.00021844,2]
[350250998,1737735113077,-521.95925985,0.00021844,2]
[350250999,1737735113087,-1013.35728048,0.00021844,2]
[350251000,1737735113097,-926.90844087,0.00021844,2]
[350251001,1737735113107,-926.10675052,0.00021844,2]
[350251002,1737735113116,-6114.83,0.00021844,2]
[350251003,1737735113126,-747.45789905,0.00021845,2]
[350251004,1737735113135,-578.89,0.00021845,2]
[350251005,1737735113145,-551.00960141,0.00021845,2]
[350251006,1737735113155,-150.0,0.00021845,4]
[350251007,1737735113163,-17786.9525261,0.0002185,2]
[350251008,1737735113173,-500.0,0.00021866,17]
[350251009,1737735113183,-150.0,0.00021876,4]
[350251010,1737735113193,-261.32494258,0.00021876,2]
[350251011,1737735113202,-900.0,0.0002188,3]
[350251012,1737735113212,-798.64,0.00021881,2]
[350251013,1737735113222,-2156.33517262,0.00021881,2]
[350251014,1737735113232,-927.13626925,0.00021881,2]
[350251015,1737735113242,-544.14,0.00021881,2]
[350251016,1737735113252,-324.34,0.00021881,2]
[350251017,1737735113262,-517.83,0.00021881,2]
[350251018,1737735113272,-1223.9707314,0.00021881,2]
[350251019,1737735113282,-1716.33030514,0.00021881,2]
[350251020,1737735113292,-1769.8826744,0.00021881,2]
[350251021,1737735113301,-617.8,0.00021881,2]
[350251022,1737735113312,-3582.90472134,0.00021881,2]
[350251023,1737735113322,-6343.15664631,0.00021881,2]
[350251024,1737735113331,-851.3,0.00021881,2]
[350251025,1737735113341,-593.1477296,0.00021881,2]
[350251026,1737735113351,-805.17600763,0.00021881,2]
[350251027,1737735113361,-1086.82861882,0.00021881,2]
[350251028,1737735113370,-1200.31082494,0.00021881,2]
[350251029,1737735113380,-500.0,0.00021888,15]
[350251030,1737735113389,-500.0,0.00021888,16]
[350251031,1737735113399,-83893.06885291,0.0002189,2]
[350251032,1737735113409,-13561.12957766,0.0002189,2]
[350251033,1737735113419,-105642.19218503,0.0002189,2]
[350251034,1737735113428,-199.46541734,0.0002189,2]
[350251035,1737735113438,-258.63109545,0.0002189,3]
[350251036,1737735113448,-10252.03443236,0.000219,30]
[350251037,1737735113458,-2000.0,0.000219,2]
[350251038,1737735113467,-2000.0,0.000219,2]
[350251039,1737735113476,-2000.0,0.000219,2]
[350251040,1737735113486,-2000.0,0.000219,2]
[350251041,1737735113495,-17958.10434353,0.000219,3]
[350251042,1737735113505,-15743.52,0.000219,10]
[350251043,1737735113515,-2015.9886,0.000219,2]
[350251044,1737735113524,-2000.0,0.000219,2]
[350251045,1737735113533,-2000.0,0.000219,2]
[350251046,1737735113542,-2000.0,0.000219,2]
[350251047,1737735113551,-2000.0,0.000219,2]
[350251048,1737735113560,-2000.0,0.000219,2]
[350251049,1737735113570,-32406.39309365,0.000219,2]
[350251050,1737735113579,-11000.0,0.000219,2]
[350251051,1737735113588,-940.51439057,0.000219,2]
[350251052,1737735113598,-940.51439057,0.000219,2]
[350251053,1737735113607,-940.51439057,0.000219,2]
[350251054,1737735113617,-940.51439057,0.000219,2]
[350251055,1737735113627,-940.51439057,0.000219,2]
[350251056,1737735113636,-940.51439057,0.000219,2]
[350251057,1737735113646,-940.51439057,0.000219,2]
[350251058,1737735113656,-940.51439057,0.000219,2]
[350251059,1737735113665,-940.51439057,0.000219,2]
[350251060,1737735113675,-940.51439057,0.000219,2]
[350251061,1737735113684,-940.51439057,0.000219,2]
[350251062,1737735113694,-940.51439057,0.000219,2]
[350251063,1737735113703,-940.51439057,0.000219,2]
[350251064,1737735113713,-940.51439057,0.000219,2]
[350251065,1737735113723,-940.51439057,0.000219,2]
[350251066,1737735113733,-940.51439057,0.000219,2]
[350251067,1737735113742,-940.51439057,0.000219,2]
[350251068,1737735113752,-940.51439057,0.000219,2]
[350251069,1737735113761,-940.51439057,0.000219,2]
[350251070,1737735113771,-940.51,0.000219,2]
[350251071,1737735113780,-2485.71977294,0.000219,2]
[350251072,1737735113790,-2485.71977294,0.000219,2]
[350251073,1737735113801,-2485.71977294,0.000219,2]
[350251074,1737735113810,-2485.71977294,0.000219,2]
[350251075,1737735113820,-2485.71977294,0.000219,2]
[350251076,1737735113830,-2485.71977294,0.000219,2]
[350251077,1737735113840,-2485.71977294,0.000219,2]
[350251078,1737735113850,-2485.71977294,0.000219,2]
[350251079,1737735113860,-2485.71977294,0.000219,2]
[350251080,1737735113870,-2485.71977294,0.000219,2]
[350251081,1737735113880,-2485.71977294,0.000219,2]
[350251082,1737735113893,-2485.71977294,0.000219,2]
[350251083,1737735113903,-2485.71977294,0.000219,2]
[350251084,1737735113914,-2485.71977294,0.000219,2]
[350251085,1737735113924,-2485.71977294,0.000219,2]
[350251086,1737735113935,-2485.71977294,0.000219,2]
[350251087,1737735113945,-2485.71977294,0.000219,2]
[350251088,1737735113954,-2485.71977294,0.000219,2]
[350251089,1737735113966,-2485.71977294,0.000219,2]
[350251090,1737735113977,-2485.71,0.000219,2]
[350251091,1737735113987,-1331.62547848,0.000219,2]
[350251092,1737735113997,-1331.62547848,0.000219,2]
[350251093,1737735114007,-1331.62547848,0.000219,2]
[350251094,1737735114018,-1331.62547848,0.000219,2]
[350251095,1737735114029,-1331.62547848,0.000219,2]
[350251096,1737735114039,-1331.62547848,0.000219,2]
[350251097,1737735114049,-1331.62547848,0.000219,2]
[350251098,1737735114059,-1331.62547848,0.000219,2]
[350251099,1737735114069,-1331.62547848,0.000219,2]
[350251100,1737735114079,-1331.62547848,0.000219,2]
[350251101,1737735114090,-1331.62547848,0.000219,2]
[350251102,1737735114100,-1331.62547848,0.000219,2]
[350251103,1737735114110,-1331.62547848,0.000219,2]
[350251104,1737735114120,-1331.62547848,0.000219,2]
[350251105,1737735114130,-1331.62547848,0.000219,2]
[350251106,1737735114139,-1331.62547848,0.000219,2]
[350251107,1737735114149,-1331.62547848,0.000219,2]
[350251108,1737735114159,-1331.62547848,0.000219,2]
[350251109,1737735114170,-1331.62547848,0.000219,2]
[350251110,1737735114180,-1331.62,0.000219,2]
[350251111,1737735114190,-623.66119626,0.000219,3]
[350251112,1737735114201,-369.99212057,0.000219,2]
[350251113,1737735114210,-151.42155941,0.000219,4]
[350251114,1737735114220,-1262.70537177,0.000219,2]
[350251115,1737735114230,-150.0,0.000219,4]
[350251116,1737735114241,-150.0,0.00021908,2]
[350251117,1737735114430,-350.0,0.00021917,2]
[350251118,1737735114440,-350.0,0.00021917,2]
[350251119,1737735114450,-218.02036824,0.00021917,2]
[350251120,1737735114460,-500.0,0.00021917,2]
[350251121,1737735114470,-379.81191162,0.00021917,2]
[350251122,1737735114480,-500.0,0.00021917,2]
[350251123,1737735114490,-500.0,0.00021917,2]
[350251124,1737735114499,-295.62929021,0.00021917,2]
[350251125,1737735114509,-903.38,0.00021917,2]
[350251126,1737735114519,-903.38,0.00021917,2]
[350251127,1737735114530,-903.38,0.00021917,2]
[350251128,1737735114541,-903.38,0.00021917,2]
[350251129,1737735114551,-903.38,0.00021917,2]
[350251130,1737735114560,-903.38,0.00021917,2]
[350251131,1737735114570,-903.38,0.00021917,2]
[350251132,1737735114579,-903.38,0.00021917,2]
[350251133,1737735114589,-903.38,0.00021917,2]
[350251134,1737735114598,-903.38,0.00021917,2]
[350251135,1737735114608,-903.38,0.00021917,2]
[350251136,1737735114617,-903.38,0.00021917,2]
[350251137,1737735114627,-903.38,0.00021917,2]
[350251138,1737735114636,-903.38,0.00021917,2]
[350251139,1737735114646,-903.38,0.00021917,2]
[350251140,1737735114655,-903.38,0.00021917,2]
[350251141,1737735114665,-903.38,0.00021917,2]
[350251142,1737735114674,-903.38,0.00021917,2]
[350251143,1737735114683,-903.38,0.00021917,2]
[350251144,1737735114694,-903.38,0.00021917,2]
[350251145,1737735114703,-903.38,0.00021917,2]
[350251146,1737735114713,-903.38,0.00021917,2]
[350251147,1737735114722,-903.38,0.00021917,2]
[350251148,1737735114731,-903.5942273,0.00021917,2]
[350251149,1737735114741,-1155.24,0.00021917,2]
[350251150,1737735114750,-1155.24,0.00021917,2]
[350251151,1737735114761,-1155.24,0.00021917,2]
[350251152,1737735114770,-1155.24,0.00021917,2]
[350251153,1737735114781,-1155.24,0.00021917,2]
[350251154,1737735114790,-1155.24,0.00021917,2]
[350251155,1737735114801,-1155.24,0.00021917,2]
[350251156,1737735114811,-1155.24,0.00021917,2]
[350251157,1737735114821,-1155.24,0.00021917,2]
[350251158,1737735114830,-1155.24,0.00021917,2]
[350251159,1737735114840,-1155.24,0.00021917,2]
[350251160,1737735114850,-1155.24,0.00021917,2]
[350251161,1737735114859,-1155.24,0.00021917,2]
[350251162,1737735114869,-1155.24,0.00021917,2]
[350251163,1737735114878,-1155.24,0.00021917,2]
[350251164,1737735114890,-1155.24,0.00021917,2]
[350251165,1737735114900,-1155.24,0.00021917,2]
[350251166,1737735114910,-1155.24,0.00021917,2]
[350251167,1737735114919,-1155.24,0.00021917,2]
[350251168,1737735114929,-1155.24,0.00021917,2]
[350251169,1737735114939,-1155.24,0.00021917,2]
[350251170,1737735114949,-1155.24,0.00021917,2]
[350251171,1737735114958,-1155.24,0.00021917,2]
[350251172,1737735114971,-1155.24284234,0.00021917,2]
[350251173,1737735114981,-150.0,0.00021918,2]
[350251174,1737735114991,-500.0,0.00021918,2]
[350251175,1737735115000,-150.0,0.00021919,4]
[350251176,1737735115010,-150.0,0.00021922,4]
[350251177,1737735115019,-150.0,0.00021922,4]
[350251178,1737735115029,-39553.28346697,0.00021934,2]
[350251179,1737735115039,-500.0,0.00021945,2]
[350251180,1737735115048,-500.0,0.00021959,7]
[350251181,1737735115058,-500.0,0.00021959,7]
[350251182,1737735115067,-150.0,0.00021962,4]
[350251183,1737735115078,-500.0,0.00021972,2]
[350251184,1737735115087,-42634.0,0.00021972,2]
[350251185,1737735115097,-500.0,0.00021973,2]
[350251186,1737735115107,-1019.75962893,0.00021975,2]
[350251187,1737735115117,-170827.96935789,0.00021975,15]
[350251188,1737735115127,-2685.46126732,0.00021975,12]
[350251189,1737735115136,-18659.98882737,0.00021975,5]
[350251190,1737735115147,-10000.0,0.00021975,15]
[350251191,1737735115157,-150.0,0.00021975,2]
[350251192,1737735115167,-86158.15379703,0.00021975,2]
[350251193,1737735115394,-500.0,0.0001883,2]
[350251194,1737735115405,-1700.72959286,0.00021975,2]
[350251195,1737735115431,-500.0,0.00018692,2]
[350251196,1737735115441,-500.0,0.0001883,2]
[350251197,1737735115452,-871.11,0.0002061,2]
[350251198,1737735115463,-1439.18573817,0.00021975,2]
[350251199,1737735115476,-261.67733779,0.00021975,2]
[350251200,1737735115700,-275.548,0.00018693,2]
[350251201,1737735115713,-224.452,0.00018693,2]
[350251202,1737735115722,-500.0,0.00018693,2]
[350251203,1737735115732,-4160.93843279,0.00018828,2]
[350251204,1737735115743,-500.0,0.00018829,2]
[350251205,1737735115752,-500.0,0.0001883,2]
[350251206,1737735115762,-151.66,0.00018967,2]
[350251207,1737735115772,-500.0,0.0002,2]
[350251208,1737735115783,-871.11,0.00020747,2]
[350251209,1737735115793,-871.11,0.00020884,2]
[350251210,1737735115803,-871.11,0.00021021,2]
[350251211,1737735115813,-871.11,0.00021158,2]
[350251212,1737735115824,-871.11,0.00021295,2]
[350251213,1737735115834,-871.11,0.00021432,2]
[350251214,1737735115844,-871.11,0.00021569,2]
[350251215,1737735115854,-113.16993284,0.00021706,2]
[350251216,1737735115891,-757.94006716,0.00021706,2]
[350251217,1737735115905,-871.13022983,0.00021843,2]
[350251218,1737735115916,-309.61157641,0.00021975,2]
[350251219,1737735115928,-109611.68294616,0.00021975,2]
[350251220,1737735115938,-1210.0,0.00021975,2]
[350251221,1737735115948,-695.17723531,0.00021975,2]
[350251222,1737735115958,-344.26467683,0.00021975,2]
[350251223,1737735115969,-752.81129924,0.00021975,2]
[350251224,1737735115979,-1503.11986663,0.00021975,2]
[350251225,1737735115990,-1017.62700393,0.00021975,2]
[350251226,1737735115999,-5123.94848789,0.00021975,2]
[350251227,1737735116009,-2426.79043012,0.00021975,2]
[350251228,1737735116019,-152825.69151989,0.00021975,2]
[350251229,1737735116032,-60278.43323433,0.00021975,2]
[350251230,1737735116042,-5015.38475389,0.00021975,2]
[350251231,1737735116052,-246.28356089,0.00021975,2]
[350251232,1737735116061,-162.50020953,0.00021975,2]
[350251233,1737735116071,-1247.29025937,0.00021975,2]
[350251234,1737735116082,-7631.00444832,0.00021975,2]
[350251235,1737735116091,-1029.54230429,0.00021975,2]
[350251236,1737735116101,-4046.65270387,0.00021975,2]
[350251237,1737735116110,-587.99424945,0.00021975,2]
[350251238,1737735116120,-9133.42170002,0.00021975,2]
[350251239,1737735116130,-1296.61532517,0.00021975,2]
[350251240,1737735116140,-3381.87630029,0.00021975,2]
[350251241,1737735116150,-12690.86459002,0.00021975,2]
[350251242,1737735116159,-1899.89984811,0.00021975,2]
[350251243,1737735116169,-182.00446752,0.00021975,2]
[350251244,1737735116179,-643.0,0.00021975,2]
[350251245,1737735116189,-959.43130529,0.00021975,2]
[350251246,1737735116199,-9535.53383278,0.00021975,2]
[350251247,1737735116209,-25065.44352,0.00021975,2]
[350251248,1737735116219,-566.67417929,0.00021975,2]
[350251249,1737735116229,-1817.10688593,0.00021975,2]
[350251250,1737735116239,-3208.5970201,0.00021975,2]
[350251251,1737735116248,-173.49779291,0.00021975,2]
[350251252,1737735116258,-7009.9437155,0.00021975,2]
[350251253,1737735116268,-50974.89483998,0.00021975,7]
[350251254,1737735116279,-550.0,0.00021975,2]
[350251255,1737735116288,-1450.69954949,0.00021975,2]
[350251256,1737735116298,-997.22687729,0.00021975,2]
[350251257,1737735116307,-944.38250117,0.00021975,2]
[350251258,1737735116317,-10590.25942764,0.00021975,2]
[350251259,1737735116327,-140052.39186057,0.00021975,2]
[350251260,1737735116337,-79999.999999,0.00021975,2]
[350251261,1737735116347,-14782.91138508,0.00021975,2]
[350251262,1737735116356,-226.41873095,0.00021975,2]
[350251263,1737735116365,-171.83341706,0.00021975,2]
[350251264,1737735116374,-6000.0,0.00021975,2]
[350251265,1737735116384,-1454.29097031,0.00021975,2]
[350251266,1737735116393,-1022.03756665,0.00021975,2]
[350251267,1737735116402,-557.0681714,0.00021975,2]
[350251268,1737735116411,-150.0,0.00021975,2]
[350251269,1737735116420,-600.53659571,0.00021975,2]
[350251270,1737735116431,-619.53646287,0.00021975,2]
[350251271,1737735116440,-212.38143145,0.00021975,2]
[350251272,1737735116449,-162435.68357759,0.00021975,2]
[350251273,1737735116630,-444.94159643,0.00021975,2]
[350251274,1737735116640,-1055.82942573,0.00021975,2]
[350251275,1737735116650,-21049.13566898,0.00021975,2]
[350251276,1737735116660,-2500.0,0.00021975,2]
[350251277,1737735116670,-573.22115584,0.00021975,2]
[350251278,1737735116680,-1098.95353707,0.00021975,2]
[350251279,1737735116689,-533.25630539,0.00021975,2]
[350251280,1737735116699,-397931.44122194,0.00021975,2]
[350251281,1737735116709,-902.70912438,0.00021975,2]
[350251282,1737735116718,-476.53826465,0.00021975,2]
[350251283,1737735116727,-168.45247516,0.00021975,2]
[350251284,1737735116737,-227.18099941,0.00021975,2]
[350251285,1737735116746,-1569.44234264,0.00021975,2]
[350251286,1737735116756,-49464.35471372,0.00021975,2]
[350251287,1737735116765,-541.83380867,0.00021975,2]
[350251288,1737735116776,-4954.25604369,0.00021975,2]
[350251289,1737735116785,-5142.03231612,0.00021975,2]
[350251290,1737735116795,-360.77815417,0.00021975,2]
[350251291,1737735116804,-2181.19318493,0.00021975,2]
[350251292,1737735116814,-280.56740212,0.00021975,2]
[350251293,1737735116824,-576.75642551,0.00021975,2]
[350251294,1737735116833,-14607.07482127,0.00021975,2]
[350251295,1737735116843,-1816.42039708,0.00021975,2]
[350251296,1737735116853,-788.20764727,0.00021975,2]
[350251297,1737735116862,-1831.09035442,0.00021975,2]
[350251298,1737735116872,-13908.34952983,0.00021975,2]
[350251299,1737735116881,-217.86959593,0.00021975,2]
[350251300,1737735116895,-10082.66906734,0.00021975,2]
[350251301,1737735116905,-279.0,0.00021975,2]
[350251302,1737735116915,-1556.96410687,0.00021975,2]
[350251303,1737735116924,-200.46947054,0.00021975,2]
[350251304,1737735116935,-279.48114936,0.00021975,2]
[350251305,1737735116944,-1001.57366749,0.00021975,2]
[350251306,1737735116954,-162.91,0.00021975,2]
[350251307,1737735116963,-10000.0,0.00021975,5]
[350251308,1737735116974,-851.1372721,0.00021975,2]
[350251309,1737735116984,-1000.0,0.00021975,30]
[350251310,1737735116993,-180.09135057,0.00021975,2]
[350251311,1737735117003,-27844.04011362,0.00021975,2]
[350251312,1737735117013,-15429.32043093,0.00021975,2]
[350251313,1737735117022,-37627.49050661,0.00021975,2]
[350251314,1737735117037,-1846.33391308,0.00021975,2]
[350251315,1737735117162,-500.0,0.00018693,2]
[350251316,1737735117172,-500.0,0.00018693,2]
[350251317,1737735117182,-500.0,0.0001883,2]
[350251318,1737735117192,-549.74,0.0001883,2]
[350251319,1737735117202,-500.0,0.00018967,2]
[350251320,1737735117212,-547.36,0.00019104,2]
[350251321,1737735117222,-534.61084197,0.00021917,2]
[350251322,1737735117232,-4568.28952527,0.00021975,2]
[350251323,1737735117243,-2743.94689906,0.00021975,2]
[350251324,1737735117299,-1781.65503257,0.00021975,2]
[350251329,1737735587383,186.723728,0.00022,120]
[350251330,1737735708504,162.64,0.00010137,2]
[350251334,1737735949113,-550.0,0.00015,2]
[350251335,1737735949135,-796.45938513,0.000154,2]
[350251336,1737735949160,-370.48,0.00016232,2]
[350251337,1737735949191,-32.28663446,0.00016232,7]
[350251339,1737736036115,-386.28279764,0.00016232,7]
[350251340,1737736041103,-370.42659943,0.00016232,7]
[350251345,1737736118394,150.0,0.00012021,2]
[350251348,1737736148196,-4624.964764,0.00016232,7]
[350251349,1737736149111,-264.52612989,0.00016232,7]
[350251350,1737736156080,-317.1,0.00016888,2]
[350251351,1737736183798,271.05,0.0001688,2]
[350251352,1737736210950,250.0,0.00016883,2]
[350251353,1737736226050,4167.19143685,0.00016892,2]
[350251388,1737736232027,-3296.10000003,0.00016892,2]
[350251391,1737736232041,-3483.82856312,0.00016892,2]
[350251393,1737736232054,-244.93,0.00016915,2]
[350251395,1737736232066,-1800.62,0.00016939,2]
[350251397,1737736232079,-1062.72145408,0.0001694,2]
[350251399,1737736232205,-423.9896237,0.0001694,2]
[350251400,1737736232254,-1264.28892222,0.0001694,2]
[350251401,1737736232268,-150.75,0.00016955,2]
[350251402,1737736232279,-301.74107778,0.00016989,2]
[350251403,1737736232295,-1002.01892222,0.00016989,2]
[350251404,1737736232307,-600.0,0.00017,2]
[350251405,1737736232319,-200.0,0.00017236,2]
[350251406,1737736232331,-1500.0,0.00017275,2]
[350251407,1737736232344,-250.0,0.00017286,2]
[350251408,1737736232355,-200.0,0.00017383,2]
[350251409,1737736232368,-250.0,0.0001747,2]
[350251410,1737736232380,-1000.0,0.00017545,2]
[350251411,1737736232394,-19534.47,0.00017562,2]
[350251412,1737736232407,-271.05,0.00017724,2]
[350251414,1737736232417,-346.91042057,0.00017792,2]
[350251416,1737736232429,-724.6335,0.0001781,2]
[350251418,1737736232439,-288.8193,0.0001781,2]
[350251420,1737736232451,-91636.72541039,0.0001791,2]
[350251422,1737736232463,-50484.85,0.0001791,2]